fUSD/lending_fUSD_20260131
["ID","MTS","AMOUNT","RATE_DAILY","PERIOD"]
[404097790,1769831433622,-233.51889341,0.00017264,2]
[404097791,1769831433632,-168.0,0.00017309,2]
[404097792,1769831433643,-242.15909246,0.00017319,2]
[404097793,1769831433653,-166.66,0.00017349,2]
[404097794,1769831433662,-151.0,0.00017358,2]
[404097795,1769831433671,-1931.98661633,0.00017366,2]
[404097796,1769831433681,-251.11897888,0.00017374,2]
[404097797,1769831433691,-260.4103811,0.00017429,2]
[404097798,1769831433702,-500.0,0.00017468,2]
[404097799,1769831433713,-270.0455652,0.00017484,2]
[404097800,1769831433723,-151.0,0.00017486,2]
[404097801,1769831433734,-280.03725112,0.00017539,2]
[404097802,1769831433744,-168.0,0.00017564,2]
[404097803,1769831433755,-711.43,0.0001757,2]
[404097804,1769831433764,-290.39862941,0.00017594,2]
[404097805,1769831433774,-163.0,0.000176,2]
[404097806,1769831433783,-163.0,0.000176,2]
[404097807,1769831433793,-151.0,0.00017615,2]
[404097808,1769831433803,-168.0,0.0001762,2]
[404097809,1769831433813,-254.07774536,0.0001764,2]
[404097810,1769831433825,-301.1433787,0.00017649,2]
[404097811,1769831433835,-500.0,0.00017699,2]
[404097812,1769831433843,-500.0,0.00017699,2]
[404097813,1769831433853,-150.0,0.00017699,2]
[404097814,1769831433861,-166.66,0.000177,2]
[404097815,1769831433873,-885.86649465,0.00017716,2]
[404097816,1769831433883,-168.0,0.00017724,2]
[404097817,1769831433892,-1277.531,0.00017729,2]
[404097818,1769831433904,-2444.0,0.00017729,2]
[404097819,1769831433914,-150.578,0.00017729,2]
[404097820,1769831433924,-3390.94,0.00017729,2]
[404097821,1769831433935,-151.0,0.00017743,2]
[404097822,1769831433944,-500.0,0.00017754,2]
[404097823,1769831433954,-539.50163504,0.00017754,2]
[404097824,1769831433963,-150.0,0.00017754,2]
[404097825,1769831433973,-180.0,0.00017768,2]
[404097826,1769831433983,-1000.0,0.00017776,2]
[404097827,1769831433993,-2859.26715463,0.000178,2]
[404097828,1769831434002,-180.0,0.00017803,2]
[404097829,1769831434013,-500.0,0.00017809,2]
[404097830,1769831434023,-150.0,0.00017809,2]
[404097831,1769831434033,-2859.26715457,0.00017811,2]
[404097832,1769831434042,-168.0,0.00017819,2]
[404097833,1769831434052,-2859.26715457,0.00017822,2]
[404097834,1769831434061,-2859.26715457,0.00017833,2]
[404097835,1769831434071,-720.137,0.00017839,2]
[404097836,1769831434080,-2859.26715457,0.00017844,2]
[404097837,1769831434090,-2859.26715457,0.00017856,2]
[404097838,1769831434100,-168.0,0.00017857,2]
[404097839,1769831434110,-500.0,0.00017863,2]
[404097840,1769831434120,-150.0,0.00017863,2]
[404097841,1769831434130,-2859.26715457,0.00017867,2]
[404097842,1769831434140,-151.0,0.00017872,2]
[404097843,1769831434149,-2859.26715457,0.00017878,2]
[404097844,1769831434160,-2859.26715457,0.00017889,2]
[404097845,1769831434170,-155.0,0.00017895,2]
[404097846,1769831434181,-500.0,0.00017896,2]
[404097847,1769831434190,-500.0,0.00017896,2]
[404097848,1769831434202,-500.0,0.00017896,2]
[404097849,1769831434213,-500.0,0.00017896,2]
[404097850,1769831434223,-500.0,0.00017896,2]
[404097851,1769831434233,-500.0,0.00017896,2]
[404097852,1769831434242,-500.0,0.00017896,2]
[404097853,1769831434252,-500.0,0.00017896,2]
[404097854,1769831434263,-500.0,0.00017896,2]
[404097855,1769831434272,-500.0,0.00017896,2]
[404097856,1769831434281,-500.0,0.00017896,2]
[404097857,1769831434290,-500.0,0.00017896,2]
[404097858,1769831434299,-500.0,0.00017896,2]
[404097859,1769831434310,-500.0,0.00017896,2]
[404097860,1769831434323,-500.0,0.00017896,2]
[404097861,1769831434332,-500.0,0.00017896,2]
[404097862,1769831434342,-646.23082833,0.00017896,2]
[404097863,1769831434351,-500.0,0.00017896,2]
[404097864,1769831434362,-500.0,0.00017896,2]
[404097865,1769831434371,-500.0,0.00017896,2]
[404097866,1769831434380,-500.0,0.00017896,2]
[404097867,1769831434389,-500.0,0.00017896,2]
[404097868,1769831434399,-500.0,0.00017896,2]
[404097869,1769831434408,-500.0,0.00017896,2]
[404097870,1769831434417,-500.0,0.00017896,2]
[404097871,1769831434426,-500.0,0.00017896,2]
[404097872,1769831434436,-500.0,0.00017896,2]
[404097873,1769831434445,-500.0,0.00017896,2]
[404097874,1769831434454,-500.0,0.00017896,2]
[404097875,1769831434464,-500.0,0.00017896,2]
[404097876,1769831434474,-500.0,0.00017896,2]
[404097877,1769831434483,-500.0,0.00017896,2]
[404097878,1769831434493,-500.0,0.00017896,2]
[404097879,1769831434502,-500.0,0.00017896,2]
[404097880,1769831434511,-500.0,0.00017896,2]
[404097881,1769831434521,-500.0,0.00017896,2]
[404097882,1769831434532,-500.0,0.00017896,2]
[404097883,1769831434542,-500.0,0.00017896,2]
[404097884,1769831434551,-500.0,0.00017896,2]
[404097885,1769831434561,-500.0,0.00017896,2]
[404097886,1769831434571,-500.0,0.00017896,2]
[404097887,1769831434579,-500.0,0.00017896,2]
[404097888,1769831434588,-275.25851648,0.00017896,2]
[404097889,1769831434596,-500.0,0.00017896,2]
[404097890,1769831434604,-500.0,0.00017896,2]
[404097891,1769831434612,-500.0,0.00017896,2]
[404097892,1769831434620,-500.0,0.00017896,2]
[404097893,1769831434628,-500.0,0.00017896,2]
[404097894,1769831434637,-500.0,0.00017896,2]
[404097895,1769831434647,-500.0,0.00017896,2]
[404097896,1769831434656,-500.0,0.00017896,2]
[404097897,1769831434665,-500.0,0.00017896,2]
[404097898,1769831434674,-500.0,0.00017896,2]
[404097899,1769831434683,-500.0,0.00017896,2]
[404097900,1769831434692,-500.0,0.00017896,2]
[404097901,1769831434701,-500.0,0.00017896,2]
[404097902,1769831434711,-500.0,0.00017896,2]
[404097903,1769831434720,-500.0,0.00017896,2]
[404097904,1769831434729,-500.0,0.00017896,2]
[404097905,1769831434739,-500.0,0.00017896,2]
[404097906,1769831434748,-500.0,0.00017896,2]
[404097907,1769831434756,-500.0,0.00017896,2]
[404097908,1769831434766,-500.0,0.00017896,2]
[404097909,1769831434775,-500.0,0.00017896,2]
[404097910,1769831434784,-500.0,0.00017896,2]
[404097911,1769831434794,-500.0,0.00017896,2]
[404097912,1769831434803,-166.46427815,0.000179,2]
[404097913,1769831434812,-2000.0,0.000179,2]
[404097914,1769831434821,-2859.26715457,0.000179,2]
[404097915,1769831434830,-597.44849079,0.000179,2]
[404097916,1769831434839,-225.25906807,0.000179,2]
[404097917,1769831434848,-500.0,0.00017918,2]
[404097918,1769831434857,-209.28369003,0.00017918,2]
[404097919,1769831434866,-168.0,0.00017931,2]
[404097920,1769831434875,-189.58,0.00017947,2]
[404097921,1769831434885,-500.0,0.00017973,2]
[404097922,1769831434894,-501.69991624,0.00017973,2]
[404097923,1769831434905,-500.0,0.00017973,2]
[404097924,1769831434914,-500.0,0.00017973,2]
[404097925,1769831434924,-501.33451157,0.00017973,2]
[404097926,1769831434933,-502.29464818,0.00017973,2]
[404097927,1769831434942,-500.0,0.00017973,2]
[404097928,1769831434952,-500.0,0.00017973,2]
[404097929,1769831434961,-503.16333224,0.00017973,2]
[404097930,1769831434970,-500.0,0.00017973,2]
[404097931,1769831434979,-163.08160986,0.00017973,2]
[404097932,1769831434988,-163.41558248,0.00017973,2]
[404097933,1769831434996,-500.63586771,0.00017973,2]
[404097934,1769831435004,-500.8944805,0.00017973,2]
[404097935,1769831435013,-500.0,0.00017973,2]
[404097936,1769831435022,-214.82328752,0.00017973,2]
[404097937,1769831435031,-504.68828687,0.00017973,2]
[404097938,1769831435041,-500.0,0.00017973,2]
[404097939,1769831435050,-180.0,0.00017987,2]
[404097940,1769831435059,-241.78354927,0.0001799,2]
[404097941,1769831435069,-308.12898463,0.00017999,2]
[404097942,1769831435078,-200.23927745,0.00017999,2]
[404097943,1769831435089,-663.0,0.00018,2]
[404097944,1769831435099,-286417.85258159,0.00018,2]
[404097945,1769831435115,-463.52990528,0.00018,2]
[404097947,1769831438398,-200.0,0.00017937,2]
[404097948,1769831438408,-136.32956405,0.0001799,2]
[404097949,1769831438469,-29.31043595,0.0001799,2]
[404097950,1769831438480,-470.68956405,0.00018,2]
[404097951,1769831438559,-636.88586202,0.00018,2]
[404097953,1769831439570,-280207.04408887,0.00018,2]
[404097972,1769831440920,-489.29525831,0.00018,2]
[404097979,1769831445651,-151.0,0.00016377,2]
[404097980,1769831445662,-2849.0,0.00018,2]
[404097981,1769831445703,-1827.46061772,0.00018,2]
[404097984,1769832355107,-215.24947629,0.000152,2]
[404097985,1769832398220,-9.07052371,0.000152,2]
[404097986,1769832398247,-600.0,0.00015565,2]
[404097987,1769832398271,-151.0,0.00015922,2]
[404097988,1769832398294,-151.0,0.00015922,2]
[404097989,1769832398317,-151.0,0.00015925,2]
[404097990,1769832398340,-283.0,0.00015944,2]
[404097991,1769832398363,-1800.0,0.00016,4]
[404097992,1769832398385,-71.5382893,0.00016272,2]
[404097993,1769832564444,-151.0,0.00015953,2]
[404097994,1769832564470,-151.0,0.00015953,2]
[404097995,1769832564492,-151.0,0.00015953,2]
[404097996,1769832564514,-128.7104286,0.00015959,2]
[404097997,1769832580466,192.28424999,0.00021,30]
[404098006,1769832631530,-151.0,0.00015956,2]
[404098008,1769832631540,-283.0,0.00015956,2]
[404098010,1769832631549,-141.28946381,0.00016272,2]
[404098012,1769832631558,-37.60066876,0.00016372,2]
[404098014,1769832631570,-262.39933124,0.00016372,2]
[404098015,1769832631579,-1200.0,0.00016372,2]
[404098017,1769832631588,-500.0,0.00016373,2]
[404098019,1769832631597,-500.0,0.00016373,2]
[404098021,1769832631607,-500.83637505,0.00016373,2]
[404098022,1769832631616,-354.38080813,0.00016373,2]
[404098024,1769832631625,-500.0,0.00016373,2]
[404098026,1769832631635,-500.0,0.00016373,2]
[404098027,1769832631644,-169.47739756,0.00016373,2]
[404098029,1769832631653,-503.42089099,0.00016373,2]
[404098031,1769832631662,-273.84,0.00016373,2]
[404098033,1769832631671,-500.0,0.00016384,2]
[404098034,1769832631680,-216.61,0.00016548,2]
[404098035,1769832631689,-178.6,0.00016582,2]
[404098036,1769832631699,-9999.99,0.00016582,2]
[404098037,1769832631711,-978.76,0.00016604,2]
[404098038,1769832631720,-185.0,0.00016612,2]
[404098039,1769832631730,-1498.11774085,0.00016613,2]
[404098040,1769832631741,-6305.58225915,0.00016613,2]
[404098041,1769832631752,-151.0,0.00016614,2]
[404098042,1769832631761,-151.0,0.00016614,2]
[404098043,1769832631771,-151.0,0.00016614,2]
[404098044,1769832631782,-272.69214043,0.00016614,2]
[404098045,1769832631791,-5948.15251435,0.00016624,2]
[404098046,1769832631803,-927.69623708,0.00016624,2]
[404098051,1769832631850,-265.84703492,0.00016624,2]
[404098053,1769832631862,-2659.24584886,0.00016624,2]
[404098071,1769832632002,-9361.86836479,0.00016624,2]
[404098073,1769832632011,-273.84,0.00016647,2]
[404098075,1769832632020,-978.76,0.00016657,2]
[404098077,1769832632030,-978.76,0.0001671,2]
[404098079,1769832632040,-195.0,0.0001672,2]
[404098081,1769832632050,-250.0,0.0001672,2]
[404098083,1769832632058,-978.76,0.00016763,2]
[404098085,1769832632068,-292.90684339,0.0001678,2]
[404098087,1769832632078,-978.76,0.00016816,2]
[404098089,1769832632087,-163.71,0.00016848,2]
[404098091,1769832632097,-978.76,0.00016869,2]
[404098093,1769832632106,-1000.0,0.00016921,2]
[404098095,1769832632115,-547.44038762,0.00016921,2]
[404098097,1769832632124,-1000.0,0.00016921,2]
[404098099,1769832632133,-273.84,0.00016921,2]
[404098101,1769832632142,-978.76,0.00016922,2]
[404098103,1769832632151,-1000.0,0.00016945,2]
[404098105,1769832632161,-978.76,0.00016975,2]
[404098107,1769832632170,-600.0,0.00017021,2]
[404098109,1769832632180,-978.76,0.00017028,2]
[404098111,1769832632188,-224.0,0.0001704,2]
[404098113,1769832632197,-1227.6,0.00017041,2]
[404098115,1769832632206,-613.8,0.00017041,2]
[404098116,1769832632217,-613.8,0.00017041,2]
[404098117,1769832632228,-613.8,0.00017041,2]
[404098118,1769832632238,-150.0,0.00017065,2]
[404098119,1769832632248,-978.76,0.00017081,2]
[404098120,1769832632258,-322.6107,0.00017099,2]
[404098121,1769832632268,-854.2589148,0.00017099,2]
[404098122,1769832632277,-209.40437684,0.00017099,2]
[404098123,1769832632286,-166.66,0.00017119,2]
[404098124,1769832632295,-978.76,0.00017134,2]
[404098125,1769832632304,-217.15233878,0.00017154,2]
[404098126,1769832632313,-344.72,0.00017178,2]
[404098127,1769832632322,-150.64,0.00017178,2]
[404098128,1769832632332,-300.0,0.00017178,2]
[404098129,1769832632340,-145.34807378,0.00017187,2]
[404098130,1769832632359,-833.41192622,0.00017187,2]
[404098131,1769832632368,-225.18697532,0.00017209,2]
[404098132,1769832632377,-978.76,0.0001724,2]
[404098133,1769832632386,-233.51889341,0.00017264,2]
[404098134,1769832632395,-978.76,0.00017293,2]
[404098135,1769832632405,-242.15909246,0.00017319,2]
[404098136,1769832632414,-978.76,0.00017346,2]
[404098137,1769832632423,-251.11897888,0.00017374,2]
[404098138,1769832632433,-978.76,0.00017399,2]
[404098139,1769832632442,-260.4103811,0.00017429,2]
[404098140,1769832632451,-150.0,0.00017445,2]
[404098141,1769832632460,-150.33969012,0.00017445,2]
[404098142,1769832632470,-978.76,0.00017452,2]
[404098143,1769832632479,-200.0,0.00017463,2]
[404098144,1769832632488,-1000.0,0.00017468,2]
[404098145,1769832632497,-272.71487804,0.00017468,2]
[404098146,1769832632506,-382.0,0.00017483,2]
[404098147,1769832632515,-270.0455652,0.00017484,2]
[404098148,1769832632524,-382.0,0.00017485,2]
[404098149,1769832632533,-382.0,0.00017497,2]
[404098150,1769832632542,-978.76,0.00017505,2]
[404098151,1769832632551,-382.0,0.00017519,2]
[404098152,1769832632560,-382.0,0.00017532,2]
[404098153,1769832632569,-280.03725112,0.00017539,2]
[404098154,1769832632579,-382.0,0.00017551,2]
[404098155,1769832632588,-153.29012916,0.00017552,2]
[404098156,1769832632598,-600.0,0.00017552,2]
[404098157,1769832632607,-192.06378942,0.00017555,2]
[404098158,1769832632870,-189.93621058,0.00017555,2]
[404098159,1769832632879,-208.30671152,0.00017557,2]
[404098160,1769832632891,-820.54991355,0.00017557,2]
[404098161,1769832632902,-1415.14337493,0.00017557,2]
[404098162,1769832632914,-191.58389665,0.00017557,2]
[404098163,1769832632927,-787.17610335,0.00017557,2]
[404098164,1769832632937,-382.0,0.00017558,2]
[404098165,1769832632947,-640.84894527,0.00017584,2]
[404098166,1769832632957,-290.39862941,0.00017594,2]
[404098167,1769832632966,-382.0,0.00017608,2]
[404098168,1769832632978,-978.76,0.0001761,2]
[404098169,1769832632988,-162.13930192,0.00017628,2]
[404098170,1769832633000,-219.86069808,0.00017628,2]
[404098171,1769832633010,-254.07774536,0.0001764,2]
[404098172,1769832633020,-885.86649465,0.00017647,2]
[404098173,1769832633030,-301.1433787,0.00017649,2]
[404098174,1769832633039,-337.55910806,0.00017652,2]
[404098175,1769832633051,-44.44089194,0.00017652,2]
[404098176,1769832633061,-600.0,0.00017659,2]
[404098177,1769832633071,-373.0,0.00017668,2]
[404098178,1769832633080,-382.0,0.0001767,2]
[404098179,1769832633089,-500.0,0.00017672,2]
[404098180,1769832633099,-500.0,0.00017672,2]
[404098181,1769832633109,-500.0,0.00017672,2]
[404098182,1769832633119,-514.0165546,0.00017672,2]
[404098183,1769832633128,-500.0,0.00017672,2]
[404098184,1769832633137,-245.16982242,0.00017672,2]
[404098185,1769832633279,-319.0717513,0.00017674,2]
[404098186,1769832633289,-382.0,0.0001769,2]
[404098187,1769832633299,-500.0,0.00017699,2]
[404098188,1769832633308,-168.0,0.00017719,2]
[404098189,1769832633318,-3885.6978527,0.00017729,2]
[404098190,1769832633327,-99.69715512,0.00017743,2]
[404098195,1769832637844,-151.0,0.00015957,2]
[404098196,1769832637855,-196.88909258,0.00017743,2]
[404098197,1769832637866,-3885.69785262,0.00017748,2]
[404098198,1769832637876,-500.0,0.00017754,2]
[404098199,1769832637888,-500.0,0.00017766,2]
[404098200,1769832637899,-500.0,0.00017766,2]
[404098201,1769832637911,-500.0,0.00017766,2]
[404098202,1769832637920,-500.0,0.00017766,2]
[404098204,1769832637931,-500.0,0.00017766,2]
[404098205,1769832637941,-250.0,0.00017766,2]
[404098206,1769832637952,-1500.95587232,0.00017767,2]
[404098207,1769832637964,-270.63893,0.00017767,2]
[404098217,1769832638132,-2114.1030503,0.00017767,2]
[404098219,1769832638142,-382.0,0.00017773,2]
[404098221,1769832638153,-382.0,0.00017786,2]
[404098223,1769832638163,-3885.69785262,0.00017786,2]
[404098225,1769832638172,-168.0,0.00017795,2]
[404098227,1769832638186,-3885.69785262,0.00017805,2]
[404098230,1769832638196,-150.0,0.00017808,2]
[404098232,1769832638206,-500.0,0.00017809,2]
[404098234,1769832638216,-3885.69785262,0.00017824,2]
[404098236,1769832638226,-166.66,0.00017825,2]
[404098238,1769832638236,-168.0,0.00017826,2]
[404098240,1769832638246,-382.0,0.00017835,2]
[404098242,1769832638257,-382.0,0.00017841,2]
[404098244,1769832638267,-3885.69785262,0.00017843,2]
[404098246,1769832638276,-194.34769176,0.00017846,2]
[404098248,1769832638287,-290.7325237,0.00017846,2]
[404098250,1769832638298,-393.3666,0.00017846,2]
[404098253,1769832638309,-382.0,0.00017849,2]
[404098255,1769832638320,-382.0,0.00017855,2]
[404098257,1769832638331,-576.11,0.00017859,2]
[404098259,1769832638342,-3885.69785262,0.00017862,2]
[404098261,1769832638352,-150.0,0.00017863,2]
[404098263,1769832638362,-500.0,0.00017863,2]
[404098265,1769832638371,-1091.21396265,0.00017881,2]
[404098281,1769832639661,-765.44534152,0.00017881,2]
[404098282,1769832639674,-2029.03854845,0.00017881,2]
[404098283,1769832639685,-303.96145155,0.00017893,2]
[404098284,1769832639719,-116.03854845,0.00017893,2]
[404098285,1769832639729,-382.0,0.00017896,2]
[404098286,1769832639739,-163.0,0.000179,2]
[404098287,1769832639749,-163.0,0.000179,2]
[404098288,1769832639762,-163.0,0.000179,3]
[404098289,1769832639771,-162.0,0.000179,3]
[404098290,1769832639781,-203.0082,0.000179,2]
[404098291,1769832639791,-166.4642781,0.000179,2]
[404098292,1769832639803,-3885.69785262,0.000179,2]
[404098293,1769832639812,-398.29899386,0.000179,2]
[404098294,1769832639822,-616.78839631,0.000179,2]
[404098295,1769832639833,-5956.34985412,0.000179,2]
[404098296,1769832639844,-382.0,0.00017902,2]
[404098297,1769832639854,-529.0,0.00017917,2]
[404098298,1769832639864,-382.0,0.00017917,2]
[404098299,1769832639873,-200.0,0.00017918,2]
[404098300,1769832639883,-500.0,0.00017918,2]
[404098301,1769832639893,-382.0,0.00017924,2]
[404098302,1769832639903,-382.0,0.00017951,2]
[404098303,1769832639915,-382.0,0.00017957,2]
[404098304,1769832639926,-500.0,0.00017973,2]
[404098305,1769832639936,-500.0,0.00017973,2]
[404098306,1769832639946,-500.0,0.00017973,2]
[404098309,1769832640316,-500.0,0.00017973,2]
[404098310,1769832640326,-500.0,0.00017973,2]
[404098311,1769832640337,-500.0,0.00017973,2]
[404098312,1769832640346,-500.0,0.00017973,2]
[404098313,1769832640355,-1680.0,0.00017982,2]
[404098314,1769832640365,-382.0,0.00017987,2]
[404098315,1769832640376,-12550.72497772,0.00018,2]
[404098316,1769832640386,-246579.67298769,0.00018,2]
[404098317,1769832641089,-776.90309751,0.00018,2]
[404098318,1769832641135,-99053.42607217,0.00018,2]
[404098319,1769832641147,-3222.40945329,0.00018,2]
[404098320,1769832641161,-48471.55950485,0.00018,2]
[404098321,1769832641173,-252.636388,0.00018,2]
[404098322,1769832641188,-726.41386139,0.00018,2]
[404098323,1769832641204,-2522.59390257,0.00018,2]
[404098324,1769832641216,-455.93069983,0.00018,2]
[404098325,1769832641233,-1760.88668995,0.00018,2]
[404098328,1769832644098,-1632.89,0.00018,2]
[404098329,1769832644298,-1426.9169098,0.00018,2]
[404098330,1769832644309,-1451.04749578,0.00018,2]
[404098331,1769832644320,-1676.38428101,0.00018,2]
[404098333,1769832644343,-324.45299627,0.00018,2]
[404098334,1769832644667,-2353.88008,0.00018,2]
[404098335,1769832644689,-710.92467494,0.00018,2]
[404098337,1769832645804,-93808.29405381,0.00018,2]
[404098338,1769832645992,-989.08349144,0.00018,2]
[404098339,1769832646026,-629.2,0.00018,2]
[404098344,1769832995911,474.16,0.00012889,2]
[404098347,1769833647128,-5056.8,0.0001415,2]
[404098348,1769833647152,-250.0,0.00015719,2]
[404098349,1769833647172,-151.0,0.00016026,2]
[404098350,1769833647194,-151.0,0.00016026,2]
[404098351,1769833647214,-14.83289646,0.0001605,2]
[404098352,1769833749096,-165.56543409,0.00013319,2]
[404098353,1769833754106,-11.85456591,0.00013319,2]
[404098354,1769833761900,151.0,0.00015994,2]
[404098355,1769833778402,151.0,0.00015994,2]
[404098356,1769833794751,151.0,0.00015994,2]
[404098357,1769833811718,151.0,0.00015997,2]
[404098358,1769833829123,151.0,0.00015997,2]
[404098367,1769833831912,-303.03557478,0.00016373,2]
[404098368,1769833831922,-117.67942522,0.00016373,2]
[404098413,1769833839849,-420.8545815,0.00016373,2]
[404098414,1769833839861,-43.81549792,0.00016373,2]
[404098415,1769833839870,-279.45255944,0.00016633,2]
[404098416,1769833839881,-730.77744056,0.00016633,2]
[404098417,1769833839891,-58.69677403,0.00016712,2]
[404098418,1769833839922,-106.86322597,0.00016712,2]
[404098419,1769833839932,-250.0,0.00017,2]
[404098420,1769833839941,-1769.99,0.00017036,2]
[404098421,1769833839951,-201.43,0.00017075,2]
[404098422,1769833839960,-616.0,0.00017077,2]
[404098423,1769833839970,-322.6107,0.00017099,2]
[404098424,1769833839979,-209.40437684,0.00017099,2]
[404098425,1769833839990,-613.8,0.000171,2]
[404098426,1769833839999,-1500.0,0.00017113,2]
[404098427,1769833840011,-217.15233878,0.00017154,2]
[404098428,1769833840021,-1200.0,0.0001718,2]
[404098429,1769833840032,-616.0,0.00017181,2]
[404098430,1769833840043,-300.0,0.00017199,2]
[404098431,1769833840054,-2315.82,0.000172,2]
[404098432,1769833840063,-616.0,0.00017205,2]
[404098433,1769833840076,-225.18697532,0.00017209,2]
[404098434,1769833840089,-616.0,0.00017262,2]
[404098435,1769833840101,-233.51889341,0.00017264,2]
[404098441,1769833840384,-242.15909246,0.00017319,2]
[404098443,1769833840405,-251.11897888,0.00017374,2]
[404098446,1769833840419,-260.4103811,0.00017429,2]
[404098448,1769833840429,-270.0455652,0.00017484,2]
[404098450,1769833840439,-280.03725112,0.00017539,2]
[404098452,1769833840451,-246.0,0.00017572,2]
[404098454,1769833840462,-343.09,0.00017572,2]
[404098456,1769833840472,-290.39862941,0.00017594,2]
[404098458,1769833840480,-613.8,0.000176,2]
[404098460,1769833840490,-456.0,0.000176,2]
[404098462,1769833840500,-301.1433787,0.00017649,2]
[404098464,1769833840509,-207.54996867,0.00017675,2]
[404098466,1769833840518,-151.0,0.00017719,2]
[404098468,1769833840527,-151.0,0.00017719,2]
[404098470,1769833840536,-151.0,0.00017719,2]
[404098472,1769833840545,-151.0,0.00017719,2]
[404098474,1769833840554,-151.0,0.00017719,2]
[404098476,1769833840564,-151.0,0.00017719,2]
[404098478,1769833840573,-854.2589148,0.00017719,2]
[404098480,1769833840582,-500.0,0.00017719,2]
[404098482,1769833840591,-200.0,0.00017719,2]
[404098484,1769833840600,-243.78218388,0.00017725,2]
[404098486,1769833840609,-416.0,0.00017725,2]
[404098488,1769833840621,-201.95716575,0.00017725,2]
[404098490,1769833840631,-200.0,0.00017725,2]
[404098491,1769833840640,-15416.23,0.00017728,2]
[404098492,1769833840649,-2444.0,0.00017729,2]
[404098493,1769833840659,-868.64,0.0001776,2]
[404098494,1769833840668,-772.96,0.00017761,2]
[404098495,1769833840677,-500.0,0.0001778,2]
[404098496,1769833840687,-416.0,0.0001778,2]
[404098497,1769833840696,-2951.4499,0.00017799,2]
[404098498,1769833840705,-200.0,0.00017808,2]
[404098499,1769833840714,-416.0,0.00017835,2]
[404098500,1769833840723,-815.71867998,0.00017887,2]
[404098501,1769833840732,-313.86334485,0.00017889,2]
[404098502,1769833840741,-416.0,0.00017889,2]
[404098503,1769833840751,-597.364,0.00017899,2]
[404098504,1769833840760,-203.0082,0.000179,2]
[404098505,1769833840770,-166.4642781,0.000179,2]
[404098506,1769833840779,-9376.47446658,0.000179,2]
[404098507,1769833840788,-398.29899386,0.000179,2]
[404098508,1769833840797,-3546.56995641,0.000179,2]
[404098509,1769833840807,-201.43,0.00017928,2]
[404098510,1769833840816,-416.0,0.00017944,2]
[404098511,1769833840826,-500.0,0.00017973,2]
[404098512,1769833840835,-500.0,0.00017973,2]
[404098513,1769833840846,-500.0,0.00017973,2]
[404098514,1769833840858,-500.0,0.00017973,2]
[404098515,1769833840868,-500.0,0.00017973,2]
[404098516,1769833840878,-500.0,0.00017973,2]
[404098517,1769833840888,-672.066982,0.00017997,2]
[404098518,1769833840899,-500.0,0.00017997,2]
[404098519,1769833840909,-500.0,0.00017997,2]
[404098520,1769833840918,-500.0,0.00017997,2]
[404098521,1769833840927,-500.0,0.00017997,2]
[404098522,1769833840936,-500.0,0.00017997,2]
[404098523,1769833840946,-500.0,0.00017997,2]
[404098524,1769833840956,-500.0,0.00017997,2]
[404098525,1769833840965,-500.0,0.00017997,2]
[404098526,1769833840975,-500.0,0.00017997,2]
[404098527,1769833840984,-500.0,0.00017997,2]
[404098528,1769833840993,-500.0,0.00017997,2]
[404098529,1769833841003,-500.0,0.00017997,2]